[Event "BL 2018-19"]
[Site "Berlin"]
[Date "2019.04.06"]
[Round "14.8"]
[White "Mueller, Werner"]
[Black "Margolin, Boris"]
[Result "0-1"]
[ECO "B23"]
[WhiteElo "2218"]
[BlackElo "2386"]
[Annotator "NA"]
[PlyCount "118"]
[EventDate "2018.11.10"]
[EventType "team-tourn"]
[EventCountry "GER"]
[SourceTitle "playchess.com"]
[Source "ChessBase"]
[SourceQuality "1"]
[WhiteTeam "Augsburg"]
[BlackTeam "SV Hofheim"]
[TimeControl "40/6000+30:3000+30"]

1. e4 {[%emt 0:00:00]} c5 {[%emt 0:00:00]} 2. Nf3 {[%emt 0:00:07]} Nc6 {[%emt 0:00:08]} 3. Nc3 {[%emt 0:00:31]} Nd4 {[%emt 0:05:09]} 4. Nxd4 {[%emt 0:08:37]} cxd4 {[%emt 0:00:08]} 5. Ne2 {[%emt 0:00:14]} e5 {[%emt 0:02:02]} 6. Ng3 $11 {[%emt 0:04:09]} Nf6 {[%emt 0:04:15]} 7. Bc4 {[%emt 0:10:41]} Be7 {[%emt 0:04:16]} 8. d3 {[%emt 0:01:18]} O-O {[%emt 0:03:28]} 9. O-O {[%emt 0:01:18]} d6 {[%emt 0:05:29]} 10. Bg5 {[%emt 0:08:17]} Be6 {[%emt 0:07:28]} 11. Bb3 {[%emt 0:03:09]} a5 {[%emt 0:09:28]} 12. c3 {[%emt 0:10:02]} dxc3 {[%emt 0:07:04]} 13. bxc3 {[%emt 0:00:08]} d5 {[%emt 0:02:48]} 14. Bxf6 {[%emt 0:06:37]} Bxf6 {[%emt 0:00:34]} 15. Qf3 {[%emt 0:01:34]} dxe4 {[%emt 0:02:14]} 16. Qxe4 {[%emt 0:07:05]} Bxb3 {[%emt 0:05:59]} 17. axb3 {[%emt 0:00:09]} b6 {[%emt 0:00:31]} 18. Nh5 {[%emt 0:01:42]} Rc8 {[%emt 0:04:05]} 19. c4 {[%emt 0:04:39]} Rc5 {[%emt 0:04:50]} 20. Rad1 {[%emt 0:07:13]} b5 {[%emt 0:08:12]} 21. h3 {[%emt 0:06:01]} g6 {[%emt 0:05:31]} 22. Nxf6+ {[%emt 0:00:46]} Qxf6 {[%emt 0:01:06]} 23. d4 {[%emt 0:08:40]} exd4 {[%emt 0:00:39]} 24. Qxd4 {[%emt 0:01:58]} Qxd4 {[%emt 0:00:10]} 25. Rxd4 {[%emt 0:00:05]} bxc4 {[%emt 0:00:21]} 26. bxc4 {[%emt 0:05:50]} Rb8 {[%emt 0:00:58]} 27. Ra1 {[%emt 0:02:18]} Kg7 {[%emt 0:00:35]} 28. g4 {[%emt 0:05:30]} Rb4 {[%emt 0:03:31]} 29. Kg2 {[%emt 0:02:44]} a4 {[%emt 0:02:30]} 30. Ra3 {[%emt 0:00:55]} Rcxc4 {[%emt 0:02:13]} 31. Rd7 {[%emt 0:00:03]} g5 {[%emt 0:05:33]} 32. Ra7 {[%emt 0:00:34]} Rf4 {[%emt 0:00:22]} 33. Kg3 {[%emt 0:01:26]} h5 {[%emt 0:01:08]} 34. gxh5 {[%emt 0:00:11]} Kh6 {[%emt 0:00:32]} 35. Rf3 {[%emt 0:01:01]} Rxf3+ {[%emt 0:00:47]} 36. Kxf3 {[%emt 0:00:01]} Kxh5 {[%emt 0:00:26]} 37. Kg2 {[%emt 0:01:39]} Kg6 {[%emt 0:02:53]} 38. Ra5 {[%emt 0:00:02]} f6 {[%emt 0:00:53]} 39. f3 {[%emt 0:01:07]} Rb2+ {[%emt 0:05:15]} 40. Kg3 {[%emt 0:01:07]} Rb4 {[%emt 0:01:48]} 41. Ra6 {[%emt 0:05:18]} Rf4 {[%emt 0:02:50]} 42. Ra5 {[%emt 0:10:31]} Kf7 {[%emt 0:06:06]} 43. Ra6 {[%emt 0:07:58]} Ke7 {[%emt 0:01:29]} 44. Rb6 {[%emt 0:02:52]} Rc4 {[%emt 0:12:51]} 45. Ra6 {[%emt 0:00:43]} Kf7 {[%emt 0:00:47]} 46. Rb6 {[%emt 0:03:32]} Kg6 {[%emt 0:04:20]} 47. Rb5 {[%emt 0:00:35]} f5 {[%emt 0:02:28]} 48. Ra5 {[%emt 0:07:38]} Rb4 {[%emt 0:00:48]} 49. Rd5 {[%emt 0:05:08]} Rb2 {[%emt 0:01:22]} 50. h4 {[%emt 0:01:02]} gxh4+ {[%emt 0:01:40]} 51. Kxh4 {[%emt 0:00:15]} Rb4+ {[%emt 0:00:20]} 52. Kg3 {[%emt 0:00:19]} f4+ {[%emt 0:00:45]} 53. Kg4 {[%emt 0:00:18]} Kf6 {[%emt 0:00:41]} 54. Rd8 {[%emt 0:07:57]} Rc4 {[%emt 0:01:04]} 55. Re8 {[%emt 0:00:29]} Rd4 {[%emt 0:01:07]} 56. Kh4 {[%emt 0:01:04]} Kf5 {[%emt 0:03:24]} 57. Kh5 {[%emt 0:01:11]} Rc4 {[%emt 0:00:45]} 58. Kh4 {[%emt 0:00:17]} Rc6 {[%emt 0:00:48]} 59. Rf8+ {[%emt 0:00:55]} Rf6 {[%emt 0:01:35]} 0-1

[Event "BL 2018-19"]
[Site "Berlin"]
[Date "2019.04.06"]
[Round "14.12"]
[White "Jakubiec, Artur"]
[Black "Sprenger, Jan Michael"]
[Result "0-1"]
[ECO "A03"]
[WhiteElo "2508"]
[BlackElo "2490"]
[Annotator "RC"]
[PlyCount "58"]
[EventDate "2018.11.10"]
[EventType "team-tourn"]
[EventCountry "GER"]
[SourceTitle "playchess.com"]
[Source "ChessBase"]
[SourceQuality "1"]
[WhiteTeam "Kiel"]
[BlackTeam "SF Berlin"]
[TimeControl "40/6000+30:3000+30"]

1. f4 {[%emt 0:00:00]} d5 {[%emt 0:03:13]} 2. Nf3 {[%emt 0:00:00]} g6 {[%emt 0:00:47]} 3. g3 {[%emt 0:00:06]} Bg7 {[%emt 0:00:05]} 4. Bg2 {[%emt 0:00:03]} Nh6 {[%emt 0:03:28]} 5. Nc3 {[%emt 0:01:37]} d4 {[%emt 0:07:18]} 6. Ne4 {[%emt 0:03:11]} Nf5 {[%emt 0:00:12]} 7. c3 {[%emt 0:01:42]} O-O {[%emt 0:06:09]} 8. cxd4 {[%emt 0:02:10]} Nxd4 {[%emt 0:01:00]} 9. Nxd4 {[%emt 0:00:49]} Qxd4 {[%emt 0:00:08]} 10. e3 {[%emt 0:00:35]} Qb6 {[%emt 0:02:05]} 11. d4 {[%emt 0:05:51]} Na6 {[%emt 0:03:52]} 12. O-O {[%emt 0:07:57]} c5 {[%emt 0:01:15]} 13. d5 {[%emt 0:00:09]} c4 {[%emt 0:03:46]} 14. Qe2 {[%emt 0:08:00]} Bd7 {[%emt 0:03:30]} 15. Bd2 {[%emt 0:10:09]} Qxb2 {[%emt 0:05:24]} 16. Rab1 {[%emt 0:07:44]} Qxa2 {[%emt 0:00:59]} 17. g4 {[%emt 0:13:21]} f5 {[%emt 0:13:31]} 18. Rxb7 {[%emt 0:06:58]} fxe4 {[%emt 0:10:39]} 19. Rxd7 {[%emt 0:00:25]} c3 {[%emt 0:03:30]} 20. d6 {[%emt 0:00:10]} Nc5 {[%emt 0:07:24]} 21. Rc7 {[%emt 0:08:09]} Rac8 {[%emt 0:04:37]} 22. Qb5 {[%emt 0:16:48]} Qxd2 {[%emt 0:03:54]} 23. Qxc5 {[%emt 0:00:06]} exd6 {[%emt 0:00:17]} 24. Qxa7 {[%emt 0:00:27]} Rxc7 {[%emt 0:01:10]} 25. Qxc7 {[%emt 0:00:04]} d5 {[%emt 0:05:04]} 26. Qc5 {[%emt 0:02:38]} d4 {[%emt 0:02:46]} 27. f5 {[%emt 0:06:43]} dxe3 {[%emt 0:06:50]} 28. f6 {[%emt 0:05:12]} e2 {[%emt 0:03:43]} 29. Qc4+ {[%emt 0:01:40]} Rf7 {[%emt 0:00:08]} 0-1

[Event "BL 2018-19"]
[Site "Berlin"]
[Date "2019.04.06"]
[Round "14.15"]
[White "Heimann, Andreas"]
[Black "Hainke, Guntram"]
[Result "1/2-1/2"]
[ECO "D45"]
[WhiteElo "2601"]
[BlackElo "2344"]
[Annotator "ChessBase"]
[PlyCount "83"]
[EventDate "2018.11.10"]
[EventType "team-tourn"]
[EventCountry "GER"]
[SourceTitle "playchess.com"]
[Source "ChessBase"]
[SourceQuality "1"]
[WhiteTeam "SF Deizisau"]
[BlackTeam "Duesseldorf"]
[TimeControl "40/6000+30:3000+30"]

1. c4 {[%emt 0:00:00]} c6 {[%emt 0:00:00]} 2. d4 {[%emt 0:00:00]} d5 {[%emt 0:00:00]} 3. Nf3 {[%emt 0:00:00]} Nf6 {[%emt 0:00:10]} 4. Nc3 {[%emt 0:00:00]} e6 {[%emt 0:00:28]} 5. e3 {[%emt 0:07:03]} a6 {[%emt 0:00:27]} 6. c5 {[%emt 0:08:49]} Nbd7 {[%emt 0:11:01]} 7. b4 {[%emt 0:05:55]} g6 {[%emt 0:10:40]} 8. Bd3 {[%emt 0:14:50]} Bg7 {[%emt 0:00:24]} 9. Bb2 {[%emt 0:03:56]} O-O {[%emt 0:02:32]} 10. h3 {[%emt 0:03:07]} Re8 {[%emt 0:05:08]} 11. Na4 {[%emt 0:01:50]} Ne4 {[%emt 0:07:22]} 12. Bxe4 {[%emt 0:07:16]} dxe4 {[%emt 0:00:07]} 13. Nd2 {[%emt 0:00:03]} f5 {[%emt 0:19:04]} 14. Nc4 {[%emt 0:00:40]} Rb8 {[%emt 0:02:29]} 15. Qb3 {[%emt 0:02:26]} Re7 {[%emt 0:04:36]} 16. O-O-O {[%emt 0:01:36]} Nf6 {[%emt 0:00:30]} 17. f3 {[%emt 0:00:27]} Bd7 {[%emt 0:05:04]} 18. Nd6 {[%emt 0:03:36]} Be8 {[%emt 0:04:49]} 19. Nb6 {[%emt 0:01:38]} Nd5 {[%emt 0:02:35]} 20. Nbc4 {[%emt 0:00:54]} b6 {[%emt 0:05:23]} 21. fxe4 {[%emt 0:07:43]} fxe4 {[%emt 0:00:32]} 22. Nxe4 {[%emt 0:01:22]} bxc5 {[%emt 0:03:00]} 23. dxc5 {[%emt 0:00:20]} Reb7 {[%emt 0:05:19]} 24. Nb6 {[%emt 0:02:52]} Qh4 {[%emt 0:01:16]} 25. Nd6 {[%emt 0:01:58]} Bxb2+ {[%emt 0:04:52]} 26. Kxb2 {[%emt 0:02:24]} Nxb6 {[%emt 0:04:00]} 27. cxb6 {[%emt 0:06:40]} Qf6+ {[%emt 0:02:56]} 28. Qc3 {[%emt 0:02:25]} Qxc3+ {[%emt 0:00:15]} 29. Kxc3 {[%emt 0:00:05]} Rxb6 {[%emt 0:00:05]} 30. Rhf1 {[%emt 0:01:10]} g5 {[%emt 0:02:20]} 31. Ne4 {[%emt 0:11:00]} Rb5 {[%emt 0:01:59]} 32. Nf6+ {[%emt 0:05:15]} Kg7 {[%emt 0:01:50]} 33. Nxe8+ {[%emt 0:03:53]} Rxe8 {[%emt 0:00:06]} 34. Rd7+ {[%emt 0:00:02]} Kg6 {[%emt 0:00:27]} 35. g4 {[%emt 0:02:43]} c5 {[%emt 0:00:20]} 36. bxc5 {[%emt 0:01:15]} Rc8 {[%emt 0:00:34]} 37. Rd6 {[%emt 0:01:57]} Rcxc5+ {[%emt 0:00:12]} 38. Kd4 {[%emt 0:00:04]} Rd5+ {[%emt 0:00:14]} 39. Rxd5 {[%emt 0:00:03]} Rxd5+ {[%emt 0:00:09]} 40. Kc4 {[%emt 0:00:33]} Ra5 {[%emt 0:00:25]} 41. Rf2 {[%emt 0:50:20]} h5 {[%emt 0:56:14]} 42. Kd4 {[%emt 0:00:00]} 1/2-1/2

[Event "BL 2018-19"]
[Site "Berlin"]
[Date "2019.04.07"]
[Round "15"]
[White "Braun, Arik"]
[Black "Efimenko, Zahar"]
[Result "1/2-1/2"]
[ECO "E32"]
[WhiteElo "2605"]
[BlackElo "2635"]
[Annotator "RC"]
[PlyCount "55"]
[EventDate "2018.11.10"]
[EventType "team-tourn"]
[EventCountry "GER"]
[SourceTitle "playchess.com"]
[Source "ChessBase"]
[SourceQuality "1"]
[WhiteTeam "Hockenheim"]
[BlackTeam "Werder Bremen"]
[TimeControl "40/6000+30:3000+30"]

1. d4 {[%emt 0:01:30]} Nf6 {[%emt 0:00:30]} 2. c4 {[%emt 0:00:00]} e6 {[%emt 0:00:30]} 3. Nc3 {[%emt 0:00:00]} Bb4 {[%emt 0:00:30]} 4. Qc2 {[%emt 0:00:00]} d6 {[%emt 0:00:30]} 5. Nf3 {[%emt 0:01:00]} O-O {[%emt 0:00:30]} 6. Bd2 {[%emt 0:00:30]} Nbd7 {[%emt 0:01:30]} 7. a3 {[%emt 0:01:30]} Bxc3 {[%emt 0:00:30]} 8. Bxc3 {[%emt 0:00:00]} c5 {[%emt 0:00:00]} 9. Rd1 {[%emt 0:12:00]} cxd4 {[%emt 0:05:00]} 10. Nxd4 {[%emt 0:02:30]} Nc5 {[%emt 0:01:30]} 11. Nb5 {[%emt 0:04:30]} Bd7 {[%emt 0:00:30]} 12. Rxd6 {[%emt 0:13:30]} a6 {[%emt 0:01:30]} 13. Bxf6 {[%emt 0:03:30]} Qxf6 {[%emt 0:00:30]} 14. Nc3 {[%emt 0:00:30]} Rad8 {[%emt 0:07:30]} 15. e3 {[%emt 0:16:30]} Bc6 {[%emt 0:13:30]} 16. Nd5 {[%emt 0:13:30]} Bxd5 {[%emt 0:16:30]} 17. Rxd8 {[%emt 0:00:30]} Rxd8 {[%emt 0:01:30]} 18. cxd5 {[%emt 0:00:00]} Rxd5 {[%emt 0:00:30]} 19. Bc4 {[%emt 0:03:00]} Rd8 {[%emt 0:01:30]} 20. O-O {[%emt 0:01:30]} g6 {[%emt 0:02:30]} 21. Be2 {[%emt 0:02:30]} Qf5 {[%emt 0:09:30]} 22. Rc1 {[%emt 0:01:30]} Qxc2 {[%emt 0:08:30]} 23. Rxc2 {[%emt 0:00:30]} Ne4 {[%emt 0:04:30]} 24. Bf3 {[%emt 0:06:30]} Rd7 {[%emt 0:01:30]} 25. h4 {[%emt 0:01:30]} Nd6 {[%emt 0:01:30]} 26. Rd2 {[%emt 0:01:30]} Rd8 {[%emt 0:03:30]} 27. Rc2 {[%emt 0:00:30]} Rd7 {[%emt 0:00:30]} 28. Rd2 {[%emt 0:00:30]} 1/2-1/2

[Event "BL 2018-19"]
[Site "Berlin"]
[Date "2019.04.07"]
[Round "15"]
[White "Maze, Sebastien"]
[Black "Hausrath, Daniel"]
[Result "1/2-1/2"]
[ECO "B12"]
[WhiteElo "2602"]
[BlackElo "2493"]
[Annotator "ChessBase"]
[PlyCount "83"]
[EventDate "2018.11.10"]
[EventType "team-tourn"]
[EventCountry "GER"]
[SourceTitle "playchess.com"]
[Source "ChessBase"]
[SourceQuality "1"]
[WhiteTeam "Viernheim"]
[BlackTeam "Muelheim"]
[TimeControl "40/6000+30:3000+30"]

1. e4 {[%emt 0:00:30]} c6 {[%emt 0:00:30]} 2. d4 {[%emt 0:00:00]} d5 {[%emt 0:00:00]} 3. e5 {[%emt 0:00:00]} Bf5 {[%emt 0:00:00]} 4. Nf3 {[%emt 0:00:00]} e6 {[%emt 0:00:30]} 5. Be2 {[%emt 0:00:00]} Nd7 {[%emt 0:00:00]} 6. O-O {[%emt 0:00:00]} Bg6 {[%emt 0:00:00]} 7. c3 {[%emt 0:00:00]} Nh6 {[%emt 0:01:30]} 8. a4 {[%emt 0:00:30]} a5 {[%emt 0:00:30]} 9. Bf4 {[%emt 0:03:30]} Be7 {[%emt 0:03:30]} 10. Nbd2 {[%emt 0:07:30]} O-O {[%emt 0:01:30]} 11. Re1 {[%emt 0:00:00]} f6 {[%emt 0:05:30]} 12. exf6 {[%emt 0:00:00]} Bxf6 {[%emt 0:00:30]} 13. Bf1 {[%emt 0:03:30]} Qb6 {[%emt 0:10:30]} 14. Qb3 {[%emt 0:34:30]} Bxd4 {[%emt 0:10:30]} 15. Nxd4 {[%emt 0:00:30]} Rxf4 {[%emt 0:00:00]} 16. Qxb6 {[%emt 0:00:30]} Nxb6 {[%emt 0:00:00]} 17. g3 {[%emt 0:01:30]} Rf6 {[%emt 0:18:30]} 18. Nxe6 {[%emt 0:02:30]} Nf5 {[%emt 0:03:30]} 19. Nc5 {[%emt 0:02:30]} Nd6 {[%emt 0:01:30]} 20. Bh3 {[%emt 0:02:30]} Bf5 {[%emt 0:11:30]} 21. Bxf5 {[%emt 0:02:30]} Rxf5 {[%emt 0:00:30]} 22. Re6 {[%emt 0:01:30]} Rf6 {[%emt 0:04:30]} 23. Rae1 {[%emt 0:00:30]} Raf8 {[%emt 0:05:30]} 24. R6e2 {[%emt 0:00:30]} R6f7 {[%emt 0:10:30]} 25. Ndb3 {[%emt 0:03:30]} Nbc4 {[%emt 0:09:13]} 26. Nd4 {[%emt 0:01:30]} Ne4 {[%emt 0:00:45]} 27. Nxe4 {[%emt 0:18:30]} dxe4 {[%emt 0:00:08]} 28. Ne6 {[%emt 0:00:30]} Re8 {[%emt 0:06:20]} 29. Ng5 {[%emt 0:00:00]} Rfe7 {[%emt 0:01:45]} 30. Nxe4 {[%emt 0:00:00]} Kh8 {[%emt 0:02:58]} 31. f3 {[%emt 0:01:30]} h6 {[%emt 0:00:36]} 32. Kg2 {[%emt 0:00:30]} Nb6 {[%emt 0:00:14]} 33. b3 {[%emt 0:00:30]} Nd5 {[%emt 0:00:19]} 34. c4 {[%emt 0:00:30]} Nb4 {[%emt 0:01:19]} 35. Rd1 {[%emt 0:02:30]} c5 {[%emt 0:00:55]} 36. Red2 {[%emt 0:00:30]} b6 {[%emt 0:00:24]} 37. Rd8 {[%emt 0:07:06]} Nc2 {[%emt 0:00:27]} 38. Rxe8+ {[%emt 0:11:37]} Rxe8 {[%emt 0:00:30]} 39. Rd6 {[%emt 0:00:44]} Rb8 {[%emt 0:00:30]} 40. Nc3 {[%emt 0:00:45]} Nd4 {[%emt 0:00:30]} 41. Nd5 {[%emt 0:50:38]} Re8 {[%emt 0:50:30]} 42. Nf4 {[%emt 0:00:06]} 1/2-1/2

[Event "BL 2018-19"]
[Site "Berlin"]
[Date "2019.04.07"]
[Round "15"]
[White "Tarlev, Konstantin"]
[Black "Buckels, Valentin"]
[Result "1/2-1/2"]
[ECO "C54"]
[WhiteElo "2557"]
[BlackElo "2427"]
[Annotator "ChessBase"]
[PlyCount "61"]
[EventDate "2018.11.10"]
[EventType "team-tourn"]
[EventCountry "GER"]
[SourceTitle "playchess.com"]
[Source "ChessBase"]
[SourceQuality "1"]
[WhiteTeam "Viernheim"]
[BlackTeam "Muelheim"]
[TimeControl "40/6000+30:3000+30"]

1. e4 {[%emt 0:00:30]} e5 {[%emt 0:00:30]} 2. Nf3 {[%emt 0:00:00]} Nc6 {[%emt 0:00:00]} 3. Bc4 {[%emt 0:00:00]} Bc5 {[%emt 0:00:00]} 4. d3 {[%emt 0:00:30]} Nf6 {[%emt 0:00:30]} 5. O-O {[%emt 0:01:30]} d6 {[%emt 0:00:30]} 6. c3 {[%emt 0:00:30]} h6 {[%emt 0:05:30]} 7. Re1 {[%emt 0:11:30]} O-O {[%emt 0:02:30]} 8. Nbd2 {[%emt 0:05:30]} a5 {[%emt 0:00:30]} 9. Nf1 {[%emt 0:07:30]} Be6 {[%emt 0:01:30]} 10. Bb5 {[%emt 0:16:30]} Ne7 {[%emt 0:02:30]} 11. d4 {[%emt 0:02:30]} Bb6 {[%emt 0:04:30]} 12. dxe5 {[%emt 0:06:30]} Ng4 {[%emt 0:04:30]} 13. Be3 {[%emt 0:00:30]} Bxe3 {[%emt 0:04:30]} 14. Nxe3 {[%emt 0:00:00]} Nxe5 {[%emt 0:00:30]} 15. Nd4 {[%emt 0:00:00]} Bd7 {[%emt 0:06:30]} 16. Bf1 {[%emt 0:00:30]} a4 {[%emt 0:03:30]} 17. Qc2 {[%emt 0:10:30]} N7g6 {[%emt 0:05:30]} 18. f3 {[%emt 0:04:30]} h5 {[%emt 0:04:30]} 19. Qf2 {[%emt 0:04:30]} Nf4 {[%emt 0:05:30]} 20. Rad1 {[%emt 0:00:30]} h4 {[%emt 0:05:30]} 21. Ndf5 {[%emt 0:08:30]} Qg5 {[%emt 0:12:30]} 22. Kh1 {[%emt 0:01:30]} Neg6 {[%emt 0:03:30]} 23. g3 {[%emt 0:10:34]} hxg3 {[%emt 0:03:30]} 24. hxg3 {[%emt 0:00:02]} Qh5+ {[%emt 0:01:30]} 25. Kg1 {[%emt 0:01:01]} Nh3+ {[%emt 0:03:30]} 26. Bxh3 {[%emt 0:00:03]} Qxh3 {[%emt 0:00:00]} 27. f4 {[%emt 0:10:24]} Rfe8 {[%emt 0:05:00]} 28. Qf3 {[%emt 0:00:53]} Ra5 {[%emt 0:04:30]} 29. c4 {[%emt 0:00:57]} Bxf5 {[%emt 0:03:48]} 30. Nxf5 {[%emt 0:00:33]} Ne7 {[%emt 0:01:22]} 31. Nxe7+ {[%emt 0:03:31]} 1/2-1/2

[Event "BL 2018-19"]
[Site "Berlin"]
[Date "2019.04.07"]
[Round "15"]
[White "Werle, Jan"]
[Black "Wagner, Dennis"]
[Result "1/2-1/2"]
[ECO "D85"]
[WhiteElo "2528"]
[BlackElo "2576"]
[Annotator "ChessBase"]
[PlyCount "80"]
[EventDate "2018.11.10"]
[EventType "team-tourn"]
[EventCountry "GER"]
[SourceTitle "playchess.com"]
[Source "ChessBase"]
[SourceQuality "1"]
[WhiteTeam "Werder Bremen"]
[BlackTeam "Hockenheim"]
[TimeControl "40/6000+30:3000+30"]

1. d4 {[%emt 0:00:30]} Nf6 {[%emt 0:00:30]} 2. c4 {[%emt 0:00:00]} g6 {[%emt 0:00:00]} 3. Nc3 {[%emt 0:00:00]} d5 {[%emt 0:00:00]} 4. cxd5 {[%emt 0:00:30]} Nxd5 {[%emt 0:00:30]} 5. e4 {[%emt 0:00:00]} Nxc3 {[%emt 0:00:00]} 6. bxc3 {[%emt 0:00:00]} Bg7 {[%emt 0:00:00]} 7. Be3 {[%emt 0:00:30]} c5 {[%emt 0:00:00]} 8. Rc1 {[%emt 0:03:30]} Qa5 {[%emt 0:10:00]} 9. Qd2 {[%emt 0:00:30]} cxd4 {[%emt 0:00:30]} 10. cxd4 {[%emt 0:00:00]} Qxd2+ {[%emt 0:00:30]} 11. Kxd2 {[%emt 0:05:00]} O-O {[%emt 0:00:00]} 12. Nf3 {[%emt 0:00:30]} Rd8 {[%emt 0:05:00]} 13. Bd3 {[%emt 0:04:30]} Nc6 {[%emt 0:04:30]} 14. d5 {[%emt 0:11:30]} Nb4 {[%emt 0:00:30]} 15. Bd4 {[%emt 0:23:30]} e6 {[%emt 0:20:30]} 16. Bxg7 {[%emt 0:03:30]} Kxg7 {[%emt 0:00:00]} 17. Rc7 {[%emt 0:18:30]} exd5 {[%emt 0:00:00]} 18. e5 {[%emt 0:00:30]} Rd7 {[%emt 0:04:30]} 19. Rhc1 {[%emt 0:02:30]} Nc6 {[%emt 0:00:30]} 20. Rxd7 {[%emt 0:01:30]} Bxd7 {[%emt 0:00:30]} 21. Rb1 {[%emt 0:02:30]} b6 {[%emt 0:32:30]} 22. Bb5 {[%emt 0:03:30]} Rc8 {[%emt 0:00:00]} 23. Rc1 {[%emt 0:10:06]} Nxe5 {[%emt 0:04:00]} 24. Nxe5 {[%emt 0:00:10]} Rxc1 {[%emt 0:00:30]} 25. Bxd7 {[%emt 0:00:02]} Ra1 {[%emt 0:02:30]} 26. a4 {[%emt 0:00:06]} Kf6 {[%emt 0:05:48]} 27. Nd3 {[%emt 0:00:10]} d4 {[%emt 0:02:00]} 28. Kc2 {[%emt 0:04:36]} Ke7 {[%emt 0:04:05]} 29. Bb5 {[%emt 0:00:07]} a6 {[%emt 0:13:59]} 30. Bxa6 {[%emt 0:01:00]} Rxa4 {[%emt 0:00:04]} 31. Bb5 {[%emt 0:00:34]} Ra3 {[%emt 0:00:08]} 32. h4 {[%emt 0:01:16]} Kd6 {[%emt 0:00:12]} 33. Be8 {[%emt 0:01:14]} Ra7 {[%emt 0:01:42]} 34. Bb5 {[%emt 0:04:26]} h6 {[%emt 0:00:23]} 35. Bc4 {[%emt 0:03:23]} g5 {[%emt 0:00:44]} 36. hxg5 {[%emt 0:01:44]} hxg5 {[%emt 0:00:01]} 37. Kb3 {[%emt 0:01:02]} f6 {[%emt 0:00:30]} 38. Kb4 {[%emt 0:00:40]} Rc7 {[%emt 0:00:30]} 39. Kb5 {[%emt 0:00:31]} Rc8 {[%emt 0:00:30]} 40. g3 {[%emt 0:02:08]} Rc7 {[%emt 0:00:16]} 1/2-1/2

[Event "BL 2018-19"]
[Site "Berlin"]
[Date "2019.04.07"]
[Round "15"]
[White "Warmerdam, Max"]
[Black "Abergel, Thal"]
[Result "0-1"]
[ECO "B90"]
[WhiteElo "2422"]
[BlackElo "2425"]
[Annotator "NA"]
[PlyCount "78"]
[EventDate "2018.11.10"]
[EventType "team-tourn"]
[EventCountry "GER"]
[SourceTitle "playchess.com"]
[Source "ChessBase"]
[SourceQuality "1"]
[WhiteTeam "Muelheim"]
[BlackTeam "Viernheim"]
[TimeControl "40/6000+30:3000+30"]

1. e4 {[%emt 0:00:30]} c5 {[%emt 0:01:30]} 2. Nf3 {[%emt 0:00:00]} d6 {[%emt 0:00:00]} 3. d4 {[%emt 0:00:00]} cxd4 {[%emt 0:00:00]} 4. Nxd4 {[%emt 0:00:30]} Nf6 {[%emt 0:00:00]} 5. Nc3 {[%emt 0:00:00]} a6 {[%emt 0:00:00]} 6. h3 {[%emt 0:00:00]} e5 {[%emt 0:00:30]} 7. Nb3 {[%emt 0:00:00]} Be6 {[%emt 0:01:30] B90: Sicilian Najdorf: Unusual White 6th moves, 6 Be3 Ng4 and 6 Be3 e5} 8. f4 {[%emt 0:01:00]} g6 {[%emt 0:00:00]} (8... exf4 9. Bxf4 Nc6 10. Qe2 Be7 11. O-O-O Qc7 12. g4 O-O 13. g5 Nd7 14. Qe3 Rac8 15. Kb1 {1-0 (60) Van Foreest,J (2612)-Nepomniachtchi,I (2763) Wijk aan Zee 2019}) 9. Be2 {[%emt 0:00:30]} Nbd7 {[%emt 0:03:00]} 10. g4 {[%emt 0:00:30]} exf4 {[%emt 0:03:30]} 11. g5 {[%emt 0:00:30]} Nh5 $146 {[%emt 0:04:30]} ({Predecessor:} 11... Ng8 12. Bxf4 h6 13. Qd4 hxg5 14. Bd2 Rxh3 15. Rxh3 Bxh3 16. O-O-O Qf6 17. Qg1 Be6 18. Nd4 {½-½ (18) Tiemann,C (2403)-Ibragimov,V (2431) GER email 2017}) 12. Bxh5 {[%emt 0:00:30]} Qxg5 {[%emt 0:01:30]} 13. Bg4 {[%emt 0:00:30]} h5 {[%emt 0:14:30]} (13... Qh4+ $11 {keeps the balance.} 14. Kd2 Bg7 {[%mdl 64] Decoy}) 14. Bxe6 {[%emt 0:02:30]} Qh4+ {[%emt 0:01:30]} 15. Kf1 {[%emt 0:00:30]} fxe6 {[%emt 0:00:30]} 16. Qe1 {[%emt 0:27:30]} (16. Nd4 $16 Qf6 17. Nf3) 16... Qf6 {[%emt 0:02:30]} 17. e5 {[%emt 0:05:30]} dxe5 {[%emt 0:17:30]} 18. Ne4 {[%emt 0:03:30]} (18. Bd2 $11) 18... Qf5 {[%emt 0:01:30]} 19. Bd2 {[%emt 0:00:30]} Be7 {[%emt 0:01:30]} 20. Bb4 {[%emt 0:22:30]} Nf6 {[%emt 0:01:30]} 21. Nxf6+ {[%emt 0:02:30]} Bxf6 {[%emt 0:00:30]} 22. Nc5 {[%emt 0:00:30]} O-O-O {[%emt 0:13:30]} 23. Ne4 {[%emt 0:01:30]} Kb8 {[%emt 0:06:30]} 24. Nxf6 {[%emt 0:01:30]} Qxf6 {[%emt 0:00:30]} 25. Bc3 {[%emt 0:00:00]} Rd5 {[%emt 0:00:30]} 26. Rd1 {[%emt 0:00:00]} Re8 $11 {[%emt 0:00:30]} 27. Qe2 {[%emt 0:33:17]} f3 {[%emt 0:12:30]} 28. Qe1 {[%emt 0:00:05]} Qf5 {[%emt 0:01:30]} 29. Rd3 {[%emt 0:03:34]} Red8 {[%emt 0:11:46]} 30. Bxe5+ {[%emt 0:01:49]} Ka8 {[%emt 0:00:12]} 31. Qc3 {[%emt 0:02:44]} Qe4 {[%emt 0:05:41]} 32. Rh2 {[%emt 0:00:16]} g5 {[%emt 0:00:24]} 33. Rhd2 {[%emt 0:01:02]} Qh4 {[%emt 0:01:47]} 34. Rxd5 {[%emt 0:00:14]} Qxh3+ {[%emt 0:00:48]} 35. Kf2 {[%emt 0:01:01]} Qg2+ {[%emt 0:00:55]} 36. Ke3 {[%emt 0:00:01]} Qg1+ {[%emt 0:00:43]} 37. Kxf3 {[%emt 0:00:55]} exd5 {[%emt 0:00:23]} 38. Ke2 {[%emt 0:01:06]} Re8 {[%emt 0:00:34]} 39. Kd3 {[%emt 0:00:22]} Rf8 {[%emt 0:01:41]} 0-1